Cogmind - Beta 14 @@@ ROGUE MODE // 2024.11.24 @ 18:54:25 Player: Fangrelle Result: Destroyed by G-47 Trooper with Particle Gun Performance ------------- Evolutions (2) 1000 Regions Visited (4) 800 Robots Destroyed (60) 300 Value Destroyed (1235) 1235 Prototype IDs (0) 0 Alien Tech Used (0) 0 Bonus (8) 8 TOTAL SCORE: 3343 Bonus ------- High Alert Combat Kills 8 Cogmind --------- Core Integrity 0/550 Matter 85/300 Energy 93/100 System Corruption 0% Temperature Cool (14) Movement Core (100) Ox1 Location -8/Materials Parts ------- > --- POWER (1) -------- (None) > --- PROPULSION (2) --- (None) > --- UTILITY (6) ------ Improved Targeting Computer Hardened Light Armor Plating > --- WEAPON (2) ------- (None) > --- INVENTORY (5) ---- Hardened Light Armor Plating Cobbler Unit Grenade Launcher Grenade Launcher Peak State ------------ > --- POWER ------------ (None) > --- PROPULSION ------- Advanced Treads Compact Wheel > --- UTILITY ---------- High-capacity Storage Unit Improved Targeting Computer Improved Targeting Computer Hardened Light Armor Plating > --- WEAPON ----------- Battle Cannon Slug Cannon > --- INVENTORY -------- Compact Wheel Salvage Targeting Computer Improved Targeting Computer Light Armor Plating Hardened Light Armor Plating Hardened Light Armor Plating Scrap Shield Cobbler Unit EM Pulse Gun Autobeam Autobeam Battle Cannon Grenade Launcher Grenade Launcher Grenade Launcher Mining Laser Multitool [Rating: 20] Favorites ----------- Power Subdweller Power Source Engine Subdweller Power Source Propulsion Light Treads Treads Light Treads Leg Aluminum Leg Wheel Compact Wheel Utility High-capacity Storage Unit Storage High-capacity Storage Unit Processor Transport Network Coupler Protection Hardened Medium Armor Plating Weapon Assault Rifle Energy Gun EM Pulse Gun Energy Cannon Beam Cannon Ballistic Gun Assault Rifle Ballistic Cannon Battle Cannon Launcher Grenade Launcher Special Weapon Multitool Build | -11 -10 -10 -10 -8 ------- Run | Yrd Mat Min Sub Mat Slots Evolved 4 | . . . . 4 Power . | . . . . . Propulsion . | . . . . . Utility 4 | . . . . 4 Weapon . | . . . . . Parts Attached 64 | . 12 3 34 15 Power 4 | . 1 1 2 . Engine 4 | . 1 1 2 . Core . | . . . . . Reactor . | . . . . . Propulsion 8 | . 3 1 2 2 Treads 5 | . 3 1 . 1 Leg . | . . . . . Wheel 3 | . . . 2 1 Hover . | . . . . . Flight . | . . . . . Utility 20 | . 4 1 10 5 Device . | . . . . . Storage 4 | . 2 . 2 . Processor 4 | . 1 . 1 2 Hackware . | . . . . . Protection 12 | . 1 1 7 3 Artifact . | . . . . . Weapon 32 | . 4 . 20 8 Energy Gun 11 | . . . 7 4 Energy Cannon 1 | . . . . 1 Ballistic Gun 8 | . 3 . 5 . Ballistic Cannon 5 | . . . 3 2 Launcher 2 | . 1 . . 1 Special Weapon 5 | . . . 5 . Impact Weapon . | . . . . . Slashing Weapon . | . . . . . Piercing Weapon . | . . . . . Special Melee Weapon . | . . . . . Unidentified Prototypes . | . . . . . Parts Lost 19 | . 1 . 6 12 Power 1 | . . . 1 . Propulsion 6 | . 1 . 2 3 Utility 5 | . . . 1 4 Weapon 7 | . . . 2 5 Highest Loss Streak 10 | . 1 . 4 10 To Critical Strikes . | . . . . . Average Slot Usage (%) 87 | . 98 100 84 63 Engine 12 | . 14 14 13 . Treads 16 | . 21 28 14 5 Leg 1 | . 6 . . . Wheel 2 | . . . 2 7 Storage 11 | . 14 14 11 8 Processor 3 | . 12 . . 17 Protection 11 | . . 14 13 7 Energy Gun 5 | . . . 7 . Ballistic Gun 17 | . 26 28 14 . Ballistic Cannon 2 | . . . 2 14 Special Weapon 1 | . . . 2 . Peak Build Rating 20 | . 11 13 15 20 Average Rating 11 | . 8 11 12 16 On Entrance 10 | 6 6 11 13 14 Naked Turns . | . . . . . Heaviest Build 61 | 10 54 59 60 61 Greatest Support 40 | 20 40 40 40 32 Greatest Overweight (x) 18 | . 1 1 18 3 Average Overweight (x) 1 | . . 1 1 2 Largest Inventory Capacity 20 | . 20 20 20 20 Average Capacity 17 | . 15 20 17 18 Most Carried 20 | . 20 20 20 20 Average Carried 16 | . 13 19 16 17 Final Capacity 20 | 8 20 20 20 5 Final Carried 20 | 6 20 20 20 5 Class Distribution -------------------- 100% | Mutant Dominant Class ---------------- Mutant | -10/Materials Mutant | -10/Mines Mutant | -10/Subcaves Mutant | -8/Materials Resources | -11 -10 -10 -10 -8 ----------- Run | Yrd Mat Min Sub Mat Matter Collected 1338 | 200 466 106 347 219 Remotely . | . . . . . Salvage Created 1543 | . 615 214 446 268 Parts 131 | . 57 17 37 20 Haulers Intercepted 2 | . 2 . . . Recyclers Shooed . | . . . . . Parts Field Recycled . | . . . . . Retrieved Matter . | . . . . . Parts Self-Destructed 17 | . . . 17 . Prevented 6 | . . . 6 . Kills | -11 -10 -10 -10 -8 ------- Run | Yrd Mat Min Sub Mat Combat Hostiles Destroyed 43 | . 14 6 11 12 Guns 28 | . 11 6 10 1 Cannons 7 | . . . 1 6 AOE 7 | . 3 . . 4 Classes Destroyed 12 | . 7 1 4 . Worker 8 | . 7 . . 1 Builder 2 | . 1 . . 1 Hauler 2 | . 2 . . . Operator 1 | . 1 . . . Turret 2 | . . . 2 . Watcher 2 | . 2 . . . Swarmer 22 | . 6 3 6 7 Grunt 14 | . 8 1 . 5 Sentry 3 | . . 2 1 . Artisan 1 | . . . 1 . Cobbler 1 | . . . 1 . Subdweller 4 | . . . 4 . Best Kill Streak 9 | . 9 4 5 6 Combat Bots Only 6 | . 5 4 4 6 Max Kills in Single Turn 4 | . 2 2 1 4 Gunslinging 1 | . 1 1 . . Exploded 4 | . 1 . . 4 Melee . | . . . . . Uniques/NPCs Destroyed . | . . . . . Combat | -11 -10 -10 -10 -8 -------- Run | Yrd Mat Min Sub Mat Hostile Shots Fired 368 | . 57 24 116 171 Missed 105 | . 18 5 37 45 Damage Taken 3433 | . 475 226 916 1816 Core 752 | . 47 18 125 562 Absorbed by Shields . | . . . . . Core Remaining (%) 62 | 100 . . 24 . Volleys Fired 178 | . 69 11 66 32 Largest 2 | . 2 2 2 2 Hottest 100 | . 50 40 100 87 Shots Fired 315 | . 135 22 114 44 Gun 253 | . 131 22 95 5 Cannon 41 | . . . 4 37 Launcher 6 | . 4 . . 2 Special 15 | . . . 15 . Kinetic 229 | . 131 22 54 22 Thermal 35 | . . . 15 20 Explosive 6 | . 4 . . 2 Electromagnetic 45 | . . . 45 . Robot Hit Streak 19 | . 10 7 19 15 Robot Miss Streak 4 | . 4 2 3 3 Penetration Max . | . . . . . Secondary Targets 7 | . 2 2 3 . Max Gunslinging Chain 1 | . 1 1 1 . Autonomous 3 | . . . . 3 Shots Hit Robots 202 | . 73 15 84 30 Core Hits 94 | . 40 8 24 22 Critical Kills 1 | . . . . 1 Critical Parts Destroyed . | . . . . . Critical Strikes 3 | . . . 1 2 Meltdown 1 | . . . . 1 Blast 1 | . . . . 1 Corrupt 1 | . . . 1 . Melee Attacks . | . . . . . Impact . | . . . . . Slashing . | . . . . . Piercing . | . . . . . Sneak Attacks . | . . . . . Combat Hostiles . | . . . . . Follow-up Attacks . | . . . . . Damage Inflicted 3292 | . 1244 173 919 956 Guns 1936 | . 899 173 821 43 Cannons 682 | . . . 44 638 Explosions 655 | . 345 . 35 275 Melee . | . . . . . Ramming . | . . . . . Kinetic 1969 | . 899 173 488 409 Thermal 326 | . . . 54 272 Explosive 620 | . 345 . . 275 Electromagnetic 377 | . . . 377 . Impact . | . . . . . Slashing . | . . . . . Piercing . | . . . . . Highest Corruption . | . . . . . Average Corruption . | . . . . . Corruption Purged . | . . . . . Corruption Blocked . | . . . . . Overload Shots . | . . . . . Overflow Damage 12 | . . . 1 11 Projectiles 12 | . . . 1 11 Explosions . | . . . . . Melee . | . . . . . Knockbacks 8 | . . . . 8 Impact . | . . . . . Kinetic 7 | . . . . 7 Secondary 1 | . . . . 1 Self-Inflicted Damage 121 | . 63 . 20 38 Shots 3 | . 1 . 1 1 Rammed 1 | . . . . 1 Targets Rammed 1 | . . . . 1 Kicked . | . . . . . Crushed . | . . . . . Highest Temperature 174 | . 12 40 5 174 Average Temperature 49 | . 7 24 5 60 Received Heat Transfer 1416 | . 171 72 318 855 Siege Activations . | . . . . . Robots Corrupted 1 | . . . 1 . Combat Hostiles . | . . . . . Parts Fried . | . . . . . Impact Corruptions . | . . . . . Robots Melted 1 | . . . . 1 Combat Hostiles 1 | . . . . 1 Parts Melted 1 | . . . . 1 Heat Transferred 705 | . . . 125 580 Parts Sabotaged . | . . . . . Parts Stolen . | . . . . . Parts Stripped . | . . . . . Power Chain Reactions 1 | . . . 1 . Alert | -11 -10 -10 -10 -8 ------- Run | Yrd Mat Min Sub Mat Peak Influence 418 | . 418 155 . 277 Initial 109 | . . 109 . . Average 161 | . 241 86 . 88 Maximum Alert Level 2 | . 2 . . 1 Low Security (%) 58 | . 23 100 . 71 Level 1 39 | . 72 . . 28 Level 2 1 | . 4 . . . Level 3 . | . . . . . Level 4 . | . . . . . Level 5 . | . . . . . High Security . | . . . . . Max Security . | . . . . . Squads Dispatched 3 | . 3 . . . Investigation 1 | . 1 . . . Extermination . | . . . . . Reinforcement 2 | . 2 . . . Assault . | . . . . . Garrison . | . . . . . Intercept . | . . . . . Searches Triggered . | . . . . . Construction Impeded . | . . . . . Haulers Reinforced . | . . . . . Active Scanning Responses . | . . . . . Cargo Convoy Interrupts . | . . . . . Stealth | -11 -10 -10 -10 -8 --------- Run | Yrd Mat Min Sub Mat Distress Signals 3 | . 3 . . . Communications Jammed . | . . . . . Distress Signals . | . . . . . Times Spotted 77 | . 27 6 23 21 Peak Tracking Total 9 | . 4 4 3 9 Tactical Retreats 9 | . 3 . 4 2 Traps | -11 -10 -10 -10 -8 ------- Run | Yrd Mat Min Sub Mat Traps Triggered 1 | . 1 . . . Indirectly . | . . . . . Trap Hack Attempts . | . . . . . Triggered . | . . . . . Disarmed . | . . . . . Reprogrammed . | . . . . . Reused . | . . . . . Traps Extracted . | . . . . . Installed 1 | . . . 1 . Triggered . | . . . . . Machines | -11 -10 -10 -10 -8 ---------- Run | Yrd Mat Min Sub Mat Machines Disabled 3 | . 2 . 1 . Max in Single Turn 2 | . 2 . 1 . Machines Repaired . | . . . . . Machines Dismantled . | . . . . . Machines Sabotaged . | . . . . . Overloaded Fab Kills . | . . . . . Hacking | -11 -10 -10 -10 -8 --------- Run | Yrd Mat Min Sub Mat Machines Accessed 7 | . 5 1 1 . Terminals 4 | . 4 . . . Fabricators . | . . . . . Repair Stations . | . . . . . Recycling Units 1 | . 1 . . . Scanalyzers . | . . . . . Garrison Access . | . . . . . Total Hacks 20 | . 16 1 3 . Successful 11 | . 7 1 3 . Failed 9 | . 9 . . . Catastrophic 1 | . 1 . . . Database Lockouts . | . . . . . Manual 13 | . 13 . . . Terminals 13 | . 13 . . . Fabricators . | . . . . . Repair Stations . | . . . . . Recycling Units 3 | . 3 . . . Scanalyzers . | . . . . . Garrison Access . | . . . . . Terminal Hacks 6 | . 2 1 3 . Record 3 | . . . 3 . Robot Analysis 1 | . 1 . . . Open Door 1 | . . 1 . . Zone Layout 1 | . 1 . . . Fabricator Hacks . | . . . . . Repair Station Hacks . | . . . . . Recycling Unit Hacks 1 | . 1 . . . Retrieve Components 1 | . 1 . . . Scanalyzer . | . . . . . Garrison Access Hacks . | . . . . . Unauthorized Hacks 3 | . 3 . . . Terminals 3 | . 3 . . . Botnet 2 | . 2 . . . Skim 1 | . 1 . . . Fabricators . | . . . . . Repair Stations . | . . . . . Recycling Units . | . . . . . Scanalyzers . | . . . . . Garrison Access . | . . . . . Data Cores Recovered . | . . . . . Used . | . . . . . Hacking Detections 5 | . 5 . . . Full Trace Events . | . . . . . Feedback Events . | . . . . . Feedback Blocked . | . . . . . Robot Schematics Acquired . | . . . . . Robots Built . | . . . . . Authchips . | . . . . . Time . | . . . . . Total Robot Build Rating . | . . . . . Part Schematics Acquired . | . . . . . Parts Built . | . . . . . Authchips . | . . . . . Time . | . . . . . Total Part Build Rating . | . . . . . Parts Repaired . | . . . . . Time . | . . . . . Parts Recycled . | . . . . . Recycled Matter . | . . . . . Retrieved Matter . | . . . . . Retrieved Components 3 | . 3 . . . Parts Scanalyzed . | . . . . . Part Schematics Acquired . | . . . . . Parts Damaged . | . . . . . Bothacking | -11 -10 -10 -10 -8 ------------ Run | Yrd Mat Min Sub Mat Used RIF Installer . | . . . . . Robots Hacked . | . . . . . Non-combat . | . . . . . Combat . | . . . . . Robot Hacks Applied . | . . . . . Relay Couplers Released . | . . . . . Fabnet Peak Effective % . | . . . . . Robots Rewired . | . . . . . Allies Hacked . | . . . . . Hacks Repelled . | . . . . . Allies | -11 -10 -10 -10 -8 -------- Run | Yrd Mat Min Sub Mat Total Allies . | . . . . . Largest Group . | . . . . . Highest-Rated Group . | . . . . . Highest-Rated Ally . | . . . . . Total Orders . | . . . . . Ally Attacks . | . . . . . Total Damage . | . . . . . Kills . | . . . . . Allies Corrupted . | . . . . . Allies Melted . | . . . . . Intel | -11 -10 -10 -10 -8 ------- Run | Yrd Mat Min Sub Mat Robot Analysis Total 1 | . 1 . . . Derelict Logs Recovered 3 | . . 2 1 . Drone Launches . | . . . . . Drone Recoveries . | . . . . . Exploration | -11 -10 -10 -10 -8 ------------- Run | Yrd Mat Min Sub Mat Turns Passed 6692 | . 1134 809 4342 407 Spaces Moved 2300 | 1 465 320 1379 135 Core 108 | . . . 90 18 Treads 1592 | . 307 320 903 62 Legs 159 | 1 158 . . . Wheels 441 | . . . 386 55 Hover . | . . . . . Flight . | . . . . . Fastest Speed 100 | 120 120 240 100 100 Average Speed 231 | 120 188 240 245 209 Slowest Speed 950 | 120 240 240 950 305 Overloaded Moves . | . . . . . Propulsion Burnouts . | . . . . . Robots Hopped . | . . . . . Cave-ins Triggered . | . . . . . Exploration Rate (%) 39 | 1 67 79 37 11 Regions Visited 4 Branch Regions 2 Pre-discovered Areas 3 | . . 2 1 . Known Exits Taken . | . . . . . Unknown Exits Taken 4 | 1 1 1 1 . Scrap Searched 1 | . . . 1 . Spaces Dug . | . . . . . Terrain Destroyed 98 | . 77 . 4 17 Melee . | . . . . . Projectile . | . . . . . AOE 98 | . 77 . 4 17 Terrain Rammed . | . . . . . Walls Destroyed . | . . . . . Machines Disabled . | . . . . . Actions | -11 -10 -10 -10 -8 --------- Run | Yrd Mat Min Sub Mat Total 3340 | . 595 341 2192 212 Wait 681 | . 10 1 646 24 Move 2296 | . 464 319 1378 135 Hop . | . . . . . Pick Up 70 | . 25 2 42 1 Fast Attach 22 | . 4 2 12 4 Attach 14 | . 1 . 6 7 Detach 2 | . . . 1 1 Swap 28 | . 7 1 16 4 Drop 44 | . 15 5 21 3 Fire 178 | . 69 11 66 32 Melee . | . . . . . Ram . | . . . . . Kick . | . . . . . Crush 1 | . . . . 1 Escape Stasis . | . . . . . Rewire . | . . . . . Trap 1 | . . . 1 . Miscellaneous 3 | . . . 3 . Route ------- -11/Scrapyard -10/Materials (discovered 3 exits: [*Mat x2] / *Min) -10/Mines (discovered 2 exits: [*Mat] / *Sub) -10/Subcaves (discovered 2 exits: *Mat / [*Rec]) -8/Materials History --------- Turn | Location | Event 1 | -11/Scrapyard | Discovered new exit (range 0) 1 | -11/Scrapyard | Entered Materials 145 | -10/Materials | Discovered new exit (range 3) 314 | -10/Materials | Build established: Mutant 599 | -10/Materials | Discovered new exit (range 5) 980 | -10/Materials | Discovered new exit (range 8) 1135 | -10/Materials | Entered Mines 1162 | -10/Mines | Met a Derelict bent on vengeance 1356 | -10/Mines | Discovered new exit (range 9) 1539 | -10/Mines | Learned location of Storage (-7) 1780 | -10/Mines | Met a Derelict who couldn't figure out how to use a Trap Extractor 1871 | -10/Mines | Discovered new exit (range 8) 1944 | -10/Mines | Entered Subcaves 2053 | -10/Subcaves | Shifting Twisted Machinery released Scrap Shield 2134 | -10/Subcaves | Shifting Twisted Machinery released Barrage Gun 2177 | -10/Subcaves | Discovered new exit (range 13) 2504 | -10/Subcaves | Learned location of Zion (-7) 2721 | -10/Subcaves | Shifting Twisted Machinery released Sub. Machine Gun 2771 | -10/Subcaves | Visited Clippyterm 2778 | -10/Subcaves | Learned Research machine intel 2928 | -10/Subcaves | Discovered new exit (range 15) 2975 | -10/Subcaves | Ambushed by Subdwellers from Twisted Machinery 3111 | -10/Subcaves | A swath of the cavern ceiling suddenly collapsed 5271 | -10/Subcaves | Ambushed by angry Subdweller bent on revenge 5276 | -10/Subcaves | Core integrity fell below 50% 5338 | -10/Subcaves | Lost 4 parts (1n1u2w) 6286 | -10/Subcaves | Entered Materials 6286 | -8/Materials | Evolved 4 slots: Utility x4 6647 | -8/Materials | Core integrity fell below 50% 6669 | -8/Materials | Core integrity fell below 20% 6693 | -8/Materials | Destroyed by G-47 Trooper with Particle Gun Last Messages --------------- 06663_ Beam Cannon destroyed. 06665_ Dropped Hcp. Storage Unit. 06665_ Mining Laser crushed and broken. 06667_ Acquired 42 matter. 06668_ K-01 Serf collects debris. 06669_ Acquired Particle Gun. 06671_ K-01 Serf cleans the Fusion Modulator. 06673_ Imp. Targeting Computer destroyed. 06674_ Particle Gun destroyed. 06674_ Critical hit (Burn: +37). 06674_ K-01 Serf cleans the Fusion Modulator. 06679_ K-01 Serf collects debris. 06685_ Acquired 44 matter. 06686_ K-01 Serf collects debris. 06687_ K-01 Serf cleans the Fusion Modulator. 06687_ Acquired Particle Gun. 06689_ M-13 Machinist repairs G-47 Trooper. 06689_ Critical hit (Burn: +37). 06690_ Particle Gun destroyed. 06692_ K-01 Serf cleans the Fusion Modulator. Map ----- +----------------------------------------------------+ | ?????????????????????????????????????????????????? | | ?????????????????????????????????????????????????? | | ?????????????????????????????????????????????????? | | ?????????????????????????????????????????????????? | | ?????????????????????????????????????????????????? | | ??????????? ? ?????????????????????????????????? | | ?????????? T #????????????????????????????????? | | ????? #????????????????????????????????? | | ????? #????????????????????????????????? | | ????? #????????????????????????????????? | | ???? #????????????????????????????????? | | ????? #????????????????????????????????? | | ?????# """ #????????????????????????????????? | | ?????# """ #????????????????????????????????? | | ?????# ^""" #????????????????????????????????? | | ?????# #????????????????????????????????? | | ?????# #????????????????????????????????? | | ????## """ #????????????????????????????????? | | ##### """ %% #????????????????????????????????? | | """ ########?#???????????????????????? | | = !################+#########???????? | | =%[ =%%* ??????? | | ##### ==*== *== ??????? | | ########################* ??????? | | #???#############+### #####??????????? | | " """" #???????????# !@g #??? #??????????????? | | R" """"?????????????#g""" #???????????????????? | | "" """??????????????#["""m*#???????????????????? | | ?????????????#!""" #???????????????????? | | ##########????????????#kgk]! #???????????????????? | | ??????????????????????#= ] #???????????????????? | | ??????????????????????########???????????????????? | | ?????????????????????????????????????????????????? | | ?????????????????????????????????????????????????? | | ?????????????????????????????????????????????????? | | ?????????????????????????????????????????????????? | | ?????????????????????????????????????????????????? | | ?????????????????????????????????????????????????? | | ?????????????????????????????????????????????????? | | ?????????????????????????????????????????????????? | | ?????????????????????????????????????????????????? | | ?????????????????????????????????????????????????? | | ?????????????????????????????????????????????????? | | ?????????????????????????????????????????????????? | | ?????????????????????????????????????????????????? | | ?????????????????????????????????????????????????? | | ?????????????????????????????????????????????????? | | ?????????????????????????????????????????????????? | | ?????????????????????????????????????????????????? | | ?????????????????????????????????????????????????? | +----------------------------------------------------+ Best States ------------- Heat Dissipation 31 Energy Generation 15 Energy Capacity 265 Matter Stores 300 Matter Capacity 300 Sight Range 16 Terrain Scan Density 10 Armor Coverage 800 Evasion (%) 55 Targeting Accuracy 12 Recoil Reduction 2 Salvage Targeting 1 Item Schematics ----------------- None Robot Schematics ------------------ None Fabricated ------------ Nothing Alien Tech Used ----------------- None Achievements -------------- None Challenges ------------ None Game ------ Seed CoolingDynamicShovel Manual? 0 Play Time 00:32:44 Cumulative 135.9 hours Start 2024.11.24 @ 18:12:36 End 2024.11.24 @ 18:54:25 Sessions 9 Manual Loads 0 Difficulty Rogue Special Mode None Game No. 265 Rogue 265 Adventurer 0 Explorer 0 Win Type - Total 0 Types 0/0/0/0/0/0/0/0/0 Lore% 43 Gallery% 41 Achievement% 36 Wizard Run 0 Options --------- Layout 0 ASCII 0 Keyboard 0 Movement Mouse Keybinds 0 Fullscreen 1 Font 24/Smallcaps Map View 91x25 Zoom Use 95% Tactical HUD 1 Map Filters NONE Filters NONE Steam 1 RUN: 4eaf2562-ffe1-4d23-bdd3-98b4761bf3a7